Workbook

Sheet Sheet1
A1: 单位代码及名称 | B1: 职位代码及名称 | C1: 姓名 | D1: 笔试准考证号 | E1: 综合成绩 | K1: 名次 | L1: 是否参加体检
E2: 笔试成绩 | F2: 按百分制计算后成绩 | G2: 按60%折算后笔试成绩 | H2: 面试成绩 | I2: 按40%折算后面试成绩 | J2: 总成绩
A3: 913遵义市疾病预防控制中心 | B3: 01公共卫生管理工作人员 | C3: 郑雨琪 | D3: 11121364220 | E3: 107.00 | F3: 71.33 | G3: 42.80 | H3: 85.40 | I3: 34.16 | J3: 76.96 | K3: 1 | L3: 是
A4: 913遵义市疾病预防控制中心 | B4: 01公共卫生管理工作人员 | C4: 郭倩 | D4: 11121240429 | E4: 105.50 | F4: 70.33 | G4: 42.20 | H4: 85.80 | I4: 34.32 | J4: 76.52 | K4: 2 | L4: 是
A5: 913遵义市疾病预防控制中心 | B5: 01公共卫生管理工作人员 | C5: 鲁俊俊 | D5: 11121354324 | E5: 107.00 | F5: 71.33 | G5: 42.80 | H5: 83.80 | I5: 33.52 | J5: 76.32 | K5: 3 | L5: 是
A6: 913遵义市疾病预防控制中心 | B6: 01公共卫生管理工作人员 | C6: 安政 | D6: 11121122220 | E6: 103.00 | F6: 68.87 | G6: 41.20 | H6: 86.00 | I6: 34.40 | J6: 75.60 | K6: 4 | L6: 否
A7: 913遵义市疾病预防控制中心 | B7: 01公共卫生管理工作人员 | C7: 陈俊 | D7: 11121359030 | E7: 109.50 | F7: 73.00 | G7: 43.80 | H7: 79.20 | I7: 31.68 | J7: 75.48 | K7: 5 | L7: 否
A8: 913遵义市疾病预防控制中心 | B8: 01公共卫生管理工作人员 | C8: 杨颖 | D8: 11121357618 | E8: 106.50 | F8: 71.00 | G8: 42.60 | H8: 80.40 | I8: 32.16 | J8: 74.76 | K8: 6 | L8: 否
A9: 913遵义市疾病预防控制中心 | B9: 01公共卫生管理工作人员 | C9: 张江红 | D9: 11121071808 | E9: 104.00 | F9: 69.33 | G9: 41.60 | H9: 82.60 | I9: 33.04 | J9: 74.64 | K9: 7 | L9: 否
A10: 913遵义市疾病预防控制中心 | B10: 01公共卫生管理工作人员 | C10: 汤易 | D10: 11121262830 | E10: 107.00 | F10: 71.33 | G10: 42.80 | H10: 79.00 | I10: 31.60 | J10: 74.40 | K10: 8 | L10: 否
A11: 913遵义市疾病预防控制中心 | B11: 01公共卫生管理工作人员 | C11: 李晓 | D11: 11121061508 | E11: 104.00 | F11: 69.33 | G11: 41.60 | H11: 81.80 | I11: 32.72 | J11: 74.32 | K11: 9 | L11: 否
A12: 913遵义市疾病预防控制中心 | B12: 01公共卫生管理工作人员 | C12: 宋欣 | D12: 11121350621 | E12: 103.00 | F12: 68.67 | G12: 41.20 | H12: 76.60 | I12: 30.64 | J12: 71.84 | K12: 10 | L12: 否
A13: 913遵义市疾病预防控制中心 | B13: 02传染病防治工作人员 | C13: 胡静 | D13: 11121073007 | E13: 112.00 | F13: 74.67 | G13: 44.80 | H13: 89.20 | I13: 35.68 | J13: 80.48 | K13: 1 | L13: 是
A14: 913遵义市疾病预防控制中心 | B14: 02传染病防治工作人员 | C14: 郑歆奕 | D14: 11121282814 | E14: 105.00 | F14: 70.00 | G14: 42.00 | H14: 86.40 | I14: 34.56 | J14: 76.56 | K14: 2 | L14: 否
A15: 913遵义市疾病预防控制中心 | B15: 02传染病防治工作人员 | C15: 钱旺 | D15: 11121360207 | E15: 108.00 | F15: 72.00 | G15: 43.20 | H15: 81.80 | I15: 32.72 | J15: 75.92 | K15: 3 | L15: 否
A16: 929遵义市中医院 | B16: 01外科副主任医师 | C16: 任关勇 | D16: 11121132520 | E16: 86.00 | F16: =E16/1.5 -> 57.33 | G16: =F16*0.6 -> 34.40 | H16: 86.20 | I16: =H16*0.4 -> 34.48 | J16: =G16+I16 -> 68.88 | K16: 1 | L16: 是
A17: 929遵义市中医院 | B17: 10医事法规工作人员 | C17: 彭蕾 | D17: 11121335302 | E17: 108.50 | F17: 72.33 | G17: 43.40 | H17: 79.40 | I17: =H17*0.4 -> 31.76 | J17: =G17+I17 -> 75.16 | K17: 1 | L17: 是
A18: 929遵义市中医院 | B18: 10医事法规工作人员 | C18: 安海燕 | D18: 11121070323 | E18: 80.00 | F18: 53.33 | G18: 32.00 | H18: 78.40 | I18: =H18*0.4 -> 31.36 | J18: =G18+I18 -> 63.36 | K18: 2 | L18: 否
A19: 929遵义市中医院 | B19: 10医事法规工作人员 | C19: 蒋娴 | D19: 11121336229 | E19: 109.50 | F19: 73.00 | G19: 43.80 | H19: 缺考 | I19: 缺考 | J19: - | K19: - | L19: 否
A20: 929遵义市中医院 | B20: 11影像技师 | C20: 唐仁杰 | D20: 11121359826 | E20: 87.00 | F20: 58.00 | G20: 34.80 | H20: 75.40 | I20: =H20*0.4 -> 30.16 | J20: =G20+I20 -> 64.96 | K20: 1 | L20: 是
A21: 929遵义市中医院 | B21: 11影像技师 | C21: 肖廷智 | D21: 11121362417 | E21: 77.00 | F21: 51.33 | G21: 30.80 | H21: 77.70 | I21: 31.08 | J21: 61.88 | K21: 2 | L21: 是
A22: 929遵义市中医院 | B22: 11影像技师 | C22: 王良涛 | D22: 11121362326 | E22: 70.50 | F22: 47.00 | G22: 28.20 | H22: 76.00 | I22: 30.40 | J22: 58.60 | K22: 3 | L22: 是
A23: 929遵义市中医院 | B23: 11影像技师 | C23: 朱春燕 | D23: 11121121906 | E23: 74.00 | F23: 49.33 | G23: 29.60 | H23: 69.04 | I23: 27.62 | J23: 57.22 | K23: 4 | L23: 是
A24: 929遵义市中医院 | B24: 11影像技师 | C24: 冷璐 | D24: 11121060302 | E24: 72.50 | F24: 48.33 | G24: 29.00 | H24: 69.20 | I24: 27.68 | J24: 56.68 | K24: 5 | L24: 否
A25: 929遵义市中医院 | B25: 11影像技师 | C25: 钱春梅 | D25: 11121060507 | E25: 72.50 | F25: 48.33 | G25: 29.00 | H25: 65.60 | I25: 26.24 | J25: 55.24 | K25: 6 | L25: 否
A26: 929遵义市中医院 | B26: 11影像技师 | C26: 罗蝶 | D26: 11121335711 | E26: 71.50 | F26: 47.67 | G26: 28.60 | H26: 66.60 | I26: 26.64 | J26: 55.24 | K26: 7 | L26: 否
A27: 929遵义市中医院 | B27: 11影像技师 | C27: 彭丽 | D27: 11121354902 | E27: 77.50 | F27: 51.67 | G27: 31.00 | H27: 缺考 | I27: 缺考 | J27: - | K27: - | L27: 否
A28: 929遵义市中医院 | B28: 14临床中药师 | C28: 杨吉容 | D28: 11121211306 | E28: 91.00 | F28: 60.67 | G28: 36.40 | H28: 79.40 | I28: =H28*0.4 -> 31.76 | J28: =G28+I28 -> 68.16 | K28: 1 | L28: 是
A29: 929遵义市中医院 | B29: 15中医师 | C29: 王家友 | D29: 11121354619 | E29: 86.50 | F29: 57.67 | G29: 34.60 | H29: 85.40 | I29: =H29*0.4 -> 34.16 | J29: =G29+I29 -> 68.76 | K29: 1 | L29: 是
A30: 929遵义市中医院 | B30: 15中医师 | C30: 先国峰 | D30: 11121351315 | E30: 92.00 | F30: 61.33 | G30: 36.80 | H30: 78.00 | I30: 31.20 | J30: 68.00 | K30: 2 | L30: 是
A31: 929遵义市中医院 | B31: 15中医师 | C31: 骆彦君 | D31: 11121292428 | E31: 96.00 | F31: 64.00 | G31: 38.40 | H31: 73.40 | I31: 29.36 | J31: 67.76 | K31: 3 | L31: 是
A32: 929遵义市中医院 | B32: 15中医师 | C32: 杨敏 | D32: 11121290927 | E32: 96.50 | F32: 64.33 | G32: 38.60 | H32: 72.80 | I32: 29.12 | J32: 67.72 | K32: 4 | L32: 是
A33: 929遵义市中医院 | B33: 15中医师 | C33: 陈丽莎 | D33: 11121131101 | E33: 89.00 | F33: 59.33 | G33: 35.60 | H33: 80.00 | I33: 32.00 | J33: 67.60 | K33: 5 | L33: 是
A34: 929遵义市中医院 | B34: 15中医师 | C34: 吴联亩 | D34: 11121360614 | E34: 85.50 | F34: 57.00 | G34: 34.20 | H34: 82.80 | I34: 33.12 | J34: 67.32 | K34: 6 | L34: 是
A35: 929遵义市中医院 | B35: 15中医师 | C35: 易克妮 | D35: 11121330830 | E35: 89.00 | F35: 59.33 | G35: 35.60 | H35: 77.40 | I35: 30.96 | J35: 66.56 | K35: 7 | L35: 是
A36: 929遵义市中医院 | B36: 15中医师 | C36: 郑传婷 | D36: 11121292916 | E36: 87.50 | F36: 58.33 | G36: 35.00 | H36: 78.40 | I36: 31.36 | J36: 66.36 | K36: 8 | L36: 是
A37: 929遵义市中医院 | B37: 15中医师 | C37: 唐成燕 | D37: 11121281427 | E37: 90.00 | F37: =E37/1.5 -> 60.00 | G37: =F37*0.6 -> 36.00 | H37: 74.20 | I37: 29.68 | J37: 65.68 | K37: 9 | L37: 是
A38: 929遵义市中医院 | B38: 15中医师 | C38: 王泽琴 | D38: 11121352413 | E38: 86.00 | F38: 57.33 | G38: 34.40 | H38: 74.40 | I38: 29.76 | J38: 64.16 | K38: 10 | L38: 是
A39: 929遵义市中医院 | B39: 15中医师 | C39: 周旭婷 | D39: 11121347911 | E39: 77.00 | F39: 51.33 | G39: 30.80 | H39: 82.80 | I39: 33.12 | J39: 63.92 | K39: 11 | L39: 是
A40: 929遵义市中医院 | B40: 15中医师 | C40: 吴浩 | D40: 11121122306 | E40: 78.50 | F40: 52.33 | G40: 31.40 | H40: 79.40 | I40: 31.76 | J40: 63.16 | K40: 12 | L40: 是
A41: 929遵义市中医院 | B41: 15中医师 | C41: 朱锋 | D41: 11121240318 | E41: 86.00 | F41: 57.33 | G41: 34.40 | H41: 71.00 | I41: 28.40 | J41: 62.80 | K41: 13 | L41: 是
A42: 929遵义市中医院 | B42: 15中医师 | C42: 白镒 | D42: 11121290314 | E42: 77.00 | F42: 51.33 | G42: 30.80 | H42: 78.80 | I42: 31.52 | J42: 62.32 | K42: 14 | L42: 是
A43: 929遵义市中医院 | B43: 15中医师 | C43: 李智勇 | D43: 11121241125 | E43: 73.50 | F43: 49.00 | G43: 29.40 | H43: 81.80 | I43: 32.72 | J43: 62.12 | K43: 15 | L43: 是
A44: 929遵义市中医院 | B44: 15中医师 | C44: 王莉 | D44: 11121360404 | E44: 75.50 | F44: 50.33 | G44: 30.20 | H44: 79.20 | I44: 31.68 | J44: 61.88 | K44: 16 | L44: 是
A45: 929遵义市中医院 | B45: 15中医师 | C45: 何艳 | D45: 11121359526 | E45: 82.00 | F45: 54.67 | G45: 32.80 | H45: 72.20 | I45: 28.88 | J45: 61.68 | K45: 17 | L45: 否
A46: 929遵义市中医院 | B46: 15中医师 | C46: 梁秋红 | D46: 11121241103 | E46: 80.50 | F46: 53.67 | G46: 32.20 | H46: 73.20 | I46: 29.28 | J46: 61.48 | K46: 18 | L46: 否
A47: 929遵义市中医院 | B47: 15中医师 | C47: 梁云 | D47: 11121260301 | E47: 82.50 | F47: 55.00 | G47: 33.00 | H47: 69.80 | I47: 27.92 | J47: 60.92 | K47: 19 | L47: 否
A48: 929遵义市中医院 | B48: 15中医师 | C48: 娄方美 | D48: 11121354707 | E48: 77.00 | F48: 51.33 | G48: 30.80 | H48: 73.60 | I48: 29.44 | J48: 60.24 | K48: 20 | L48: 否
A49: 929遵义市中医院 | B49: 15中医师 | C49: 韦现 | D49: 11121331114 | E49: 70.50 | F49: 47.00 | G49: 28.20 | H49: 79.60 | I49: 31.84 | J49: 60.04 | K49: 21 | L49: 否
A50: 929遵义市中医院 | B50: 15中医师 | C50: 闫登速 | D50: 11121292928 | E50: 73.50 | F50: 49.00 | G50: 29.40 | H50: 75.80 | I50: 30.32 | J50: 59.72 | K50: 22 | L50: 否
A51: 929遵义市中医院 | B51: 15中医师 | C51: 刘秋平 | D51: 11121355427 | E51: 75.50 | F51: 50.33 | G51: 30.20 | H51: 71.20 | I51: 28.48 | J51: 58.68 | K51: 23 | L51: 否
A52: 929遵义市中医院 | B52: 15中医师 | C52: 王叶 | D52: 11121060908 | E52: 70.00 | F52: 46.67 | G52: 28.00 | H52: 75.00 | I52: 30.00 | J52: 58.00 | K52: 24 | L52: 否
A53: 929遵义市中医院 | B53: 15中医师 | C53: 冉启燕 | D53: 11121070502 | E53: 74.00 | F53: 49.33 | G53: 29.60 | H53: 69.20 | I53: 27.68 | J53: 57.28 | K53: 25 | L53: 否
A54: 929遵义市中医院 | B54: 16西医师 | C54: 张家鸿 | D54: 11121355719 | E54: 96.00 | F54: 64.00 | G54: 38.40 | H54: 88.00 | I54: 35.20 | J54: 73.60 | K54: 1 | L54: 是
A55: 929遵义市中医院 | B55: 16西医师 | C55: 古竣羽 | D55: 11121292211 | E55: 98.50 | F55: 65.67 | G55: 39.40 | H55: 83.00 | I55: 33.20 | J55: 72.60 | K55: 2 | L55: 是
A56: 929遵义市中医院 | B56: 16西医师 | C56: 胡定浩 | D56: 11121280423 | E56: 89.50 | F56: 59.67 | G56: 35.80 | H56: 84.60 | I56: 33.84 | J56: 69.64 | K56: 3 | L56: 是
A57: 929遵义市中医院 | B57: 16西医师 | C57: 何坤 | D57: 11121131022 | E57: 83.00 | F57: 55.33 | G57: 33.20 | H57: 89.40 | I57: 35.76 | J57: 68.96 | K57: 4 | L57: 是
A58: 929遵义市中医院 | B58: 16西医师 | C58: 田文静 | D58: 11121132204 | E58: 83.00 | F58: 55.33 | G58: 33.20 | H58: 88.20 | I58: 35.28 | J58: 68.48 | K58: 5 | L58: 是
A59: 929遵义市中医院 | B59: 16西医师 | C59: 胡露 | D59: 11121130706 | E59: 87.00 | F59: 58.00 | G59: 34.80 | H59: 83.20 | I59: 33.28 | J59: 68.08 | K59: 6 | L59: 是
A60: 929遵义市中医院 | B60: 16西医师 | C60: 殷世丽 | D60: 11121261606 | E60: 87.00 | F60: 58.00 | G60: 34.80 | H60: 81.60 | I60: 32.64 | J60: 67.44 | K60: 7 | L60: 是
A61: 929遵义市中医院 | B61: 16西医师 | C61: 汪正鑫 | D61: 11121241404 | E61: 79.00 | F61: 52.67 | G61: 31.60 | H61: 89.20 | I61: 35.68 | J61: 67.28 | K61: 8 | L61: 是
A62: 929遵义市中医院 | B62: 16西医师 | C62: 尹姣姣 | D62: 11121211826 | E62: 81.50 | F62: 54.33 | G62: 32.60 | H62: 85.60 | I62: 34.24 | J62: 66.84 | K62: 9 | L62: 是
A63: 929遵义市中医院 | B63: 16西医师 | C63: 周起翔 | D63: 11121355716 | E63: 89.00 | F63: 59.33 | G63: 35.60 | H63: 77.40 | I63: 30.96 | J63: 66.56 | K63: 10 | L63: 是
A64: 929遵义市中医院 | B64: 16西医师 | C64: 徐红 | D64: 11121335805 | E64: 82.50 | F64: 55.00 | G64: 33.00 | H64: 82.00 | I64: 32.80 | J64: 65.80 | K64: 11 | L64: 否
A65: 929遵义市中医院 | B65: 16西医师 | C65: 王建红 | D65: 11121335103 | E65: 80.50 | F65: 53.67 | G65: 32.20 | H65: 82.00 | I65: 32.80 | J65: 65.00 | K65: 12 | L65: 否
A66: 929遵义市中医院 | B66: 16西医师 | C66: 余肖 | D66: 11121361626 | E66: 78.50 | F66: 52.33 | G66: 31.40 | H66: 83.00 | I66: 33.20 | J66: 64.60 | K66: 13 | L66: 否
A67: 929遵义市中医院 | B67: 16西医师 | C67: 严应秋 | D67: 11121121516 | E67: 81.00 | F67: 54.00 | G67: 32.40 | H67: 78.40 | I67: 31.36 | J67: 63.76 | K67: 14 | L67: 否
A68: 929遵义市中医院 | B68: 16西医师 | C68: 何伟 | D68: 11121120813 | E68: 76.50 | F68: 51.00 | G68: 30.60 | H68: 80.80 | I68: 32.32 | J68: 62.92 | K68: 15 | L68: 否
A69: 929遵义市中医院 | B69: 16西医师 | C69: 陈志科 | D69: 11121356712 | E69: 73.00 | F69: 48.67 | G69: 29.20 | H69: 83.80 | I69: 33.52 | J69: 62.72 | K69: 16 | L69: 否
A70: 929遵义市中医院 | B70: 16西医师 | C70: 曾仲韦 | D70: 11121121322 | E70: 75.50 | F70: 50.33 | G70: 30.20 | H70: 79.60 | I70: 31.84 | J70: 62.04 | K70: 17 | L70: 否
A71: 929遵义市中医院 | B71: 16西医师 | C71: 李威 | D71: 11121336616 | E71: 80.00 | F71: 53.33 | G71: 32.00 | H71: 74.00 | I71: 29.60 | J71: 61.60 | K71: 18 | L71: 否
A72: 929遵义市中医院 | B72: 16西医师 | C72: 张俊 | D72: 11121350917 | E72: 76.50 | F72: 51.00 | G72: 30.60 | H72: 77.00 | I72: 30.80 | J72: 61.40 | K72: 19 | L72: 否
A73: 929遵义市中医院 | B73: 16西医师 | C73: 冯涛 | D73: 11121352626 | E73: 72.00 | F73: 48.00 | G73: 28.80 | H73: 缺考 | I73: 缺考 | J73: - | K73: - | L73: 否
A74: 929遵义市中医院 | B74: 16西医师 | C74: 赵福静 | D74: 11121130601 | E74: 70.50 | F74: 47.00 | G74: 28.20 | H74: 缺考 | I74: 缺考 | J74: - | K74: - | L74: 否
A75: 929遵义市中医院 | B75: 16西医师 | C75: 孟贤彬 | D75: 11121348304 | E75: 70.00 | F75: 46.67 | G75: 28.00 | H75: 缺考 | I75: 缺考 | J75: - | K75: - | L75: 否
A76: 929遵义市中医院 | B76: 18妇产科医师 | C76: 李旖 | D76: 11121351627 | E76: 92.50 | F76: 61.67 | G76: 37.00 | H76: 85.20 | I76: =H76*0.4 -> 34.08 | J76: =G76+I76 -> 71.08 | K76: 1 | L76: 是
A77: 929遵义市中医院 | B77: 18妇产科医师 | C77: 穆艳 | D77: 11121290420 | E77: 73.00 | F77: 48.67 | G77: 29.20 | H77: 86.20 | I77: 34.48 | J77: 63.68 | K77: 2 | L77: 否
A78: 929遵义市中医院 | B78: 19专科护士 | C78: 张永兰 | D78: 11121349325 | E78: 122.50 | F78: 81.67 | G78: 49.00 | H78: 73.40 | I78: 29.36 | J78: 78.36 | K78: 1 | L78: 是
A79: 929遵义市中医院 | B79: 19专科护士 | C79: 朱丽莎 | D79: 11121241507 | E79: 119.00 | F79: 79.33 | G79: 47.60 | H79: 69.20 | I79: 27.68 | J79: 75.28 | K79: 2 | L79: 是
A80: 929遵义市中医院 | B80: 19专科护士 | C80: 邓江红 | D80: 11121359226 | E80: 114.00 | F80: 76.00 | G80: 45.60 | H80: 72.80 | I80: 29.12 | J80: 74.72 | K80: 3 | L80: 是
A81: 929遵义市中医院 | B81: 19专科护士 | C81: 冯建容 | D81: 11121336219 | E81: 109.00 | F81: 72.67 | G81: 43.60 | H81: 77.40 | I81: 30.96 | J81: 74.56 | K81: 4 | L81: 是
A82: 929遵义市中医院 | B82: 19专科护士 | C82: 张亚 | D82: 11121358213 | E82: 95.00 | F82: 63.33 | G82: 38.00 | H82: 83.80 | I82: 33.52 | J82: 71.52 | K82: 5 | L82: 是
A83: 929遵义市中医院 | B83: 19专科护士 | C83: 李丹丹 | D83: 11121120408 | E83: 87.00 | F83: 58.00 | G83: 34.80 | H83: 88.80 | I83: 35.52 | J83: 70.32 | K83: 6 | L83: 是
A84: 929遵义市中医院 | B84: 19专科护士 | C84: 黄晓仙 | D84: 11121349909 | E84: 95.50 | F84: 63.67 | G84: 38.20 | H84: 80.00 | I84: 32.00 | J84: 70.20 | K84: 7 | L84: 是
A85: 929遵义市中医院 | B85: 19专科护士 | C85: 徐明清 | D85: 11121282825 | E85: 94.50 | F85: 63.00 | G85: 37.80 | H85: 77.80 | I85: 31.12 | J85: 68.92 | K85: 8 | L85: 是
A86: 929遵义市中医院 | B86: 19专科护士 | C86: 袁海燕 | D86: 11121336605 | E86: 91.00 | F86: 60.67 | G86: 36.40 | H86: 80.20 | I86: 32.08 | J86: 68.48 | K86: 9 | L86: 是
A87: 929遵义市中医院 | B87: 19专科护士 | C87: 王启星 | D87: 11121242207 | E87: 89.50 | F87: 59.67 | G87: 35.80 | H87: 79.40 | I87: 31.76 | J87: 67.56 | K87: 10 | L87: 是
A88: 929遵义市中医院 | B88: 19专科护士 | C88: 李佳 | D88: 11121130722 | E88: 84.00 | F88: 56.00 | G88: 33.60 | H88: 84.00 | I88: 33.60 | J88: 67.20 | K88: 11 | L88: 否
A89: 929遵义市中医院 | B89: 19专科护士 | C89: 陈勤 | D89: 11121070919 | E89: 86.00 | F89: 57.33 | G89: 34.40 | H89: 81.60 | I89: 32.64 | J89: 67.04 | K89: 12 | L89: 否
A90: 929遵义市中医院 | B90: 19专科护士 | C90: 程莹 | D90: 11121061827 | E90: 88.00 | F90: 58.67 | G90: 35.20 | H90: 79.40 | I90: 31.76 | J90: 66.96 | K90: 13 | L90: 否
A91: 929遵义市中医院 | B91: 19专科护士 | C91: 李艳婷 | D91: 11121358906 | E91: 87.50 | F91: 58.33 | G91: 35.00 | H91: 79.40 | I91: 31.76 | J91: 66.76 | K91: 14 | L91: 否
A92: 929遵义市中医院 | B92: 19专科护士 | C92: 李小丹 | D92: 11121212810 | E92: 83.50 | F92: 55.67 | G92: 33.40 | H92: 80.80 | I92: 32.32 | J92: 65.72 | K92: 15 | L92: 否
A93: 929遵义市中医院 | B93: 19专科护士 | C93: 袁婷 | D93: 11121241503 | E93: 86.00 | F93: 57.33 | G93: 34.40 | H93: 78.00 | I93: 31.20 | J93: 65.60 | K93: 16 | L93: 否
A94: 929遵义市中医院 | B94: 19专科护士 | C94: 陈容 | D94: 11121330908 | E94: 86.00 | F94: 57.33 | G94: 34.40 | H94: 76.20 | I94: 30.48 | J94: 64.88 | K94: 17 | L94: 否
A95: 929遵义市中医院 | B95: 19专科护士 | C95: 陈露露 | D95: 11121263213 | E95: 83.50 | F95: 55.67 | G95: 33.40 | H95: 77.40 | I95: 30.96 | J95: 64.36 | K95: 18 | L95: 否
A96: 929遵义市中医院 | B96: 19专科护士 | C96: 李璇 | D96: 11121133005 | E96: 86.00 | F96: 57.33 | G96: 34.40 | H96: 74.80 | I96: 29.92 | J96: 64.32 | K96: 19 | L96: 否
A97: 929遵义市中医院 | B97: 19专科护士 | C97: 杨菁 | D97: 11121355810 | E97: 88.50 | F97: 59.00 | G97: 35.40 | H97: 71.80 | I97: 28.72 | J97: 64.12 | K97: 20 | L97: 否
A98: 929遵义市中医院 | B98: 19专科护士 | C98: 叶兰 | D98: 11121261410 | E98: 83.00 | F98: 55.33 | G98: 33.20 | H98: 75.80 | I98: 30.32 | J98: 63.52 | K98: 21 | L98: 否
A99: 929遵义市中医院 | B99: 19专科护士 | C99: 李红 | D99: 11121292828 | E99: 84.50 | F99: 56.33 | G99: 33.80 | H99: 73.20 | I99: 29.28 | J99: 63.08 | K99: 22 | L99: 否
A100: 929遵义市中医院 | B100: 19专科护士 | C100: 何永梅 | D100: 11121281518 | E100: 86.00 | F100: 57.33 | G100: 34.40 | H100: 71.60 | I100: 28.64 | J100: 63.04 | K100: 23 | L100: 否
A101: 929遵义市中医院 | B101: 19专科护士 | C101: 熊美方 | D101: 11121121610 | E101: 83.50 | F101: =E101/1.5 -> 55.67 | G101: =F101*0.6 -> 33.40 | H101: 73.20 | I101: 29.28 | J101: 62.68 | K101: 24 | L101: 否
A102: 929遵义市中医院 | B102: 19专科护士 | C102: 谌良懿 | D102: 11121354721 | E102: 85.00 | F102: 56.67 | G102: 34.00 | H102: 71.40 | I102: 28.56 | J102: 62.56 | K102: 25 | L102: 否
A103: 929遵义市中医院 | B103: 19专科护士 | C103: 张翠 | D103: 11121336921 | E103: 85.00 | F103: 56.67 | G103: 34.00 | H103: 71.20 | I103: 28.48 | J103: 62.48 | K103: 26 | L103: 否
A104: 929遵义市中医院 | B104: 19专科护士 | C104: 张梅 | D104: 11121282210 | E104: 85.50 | F104: 57.00 | G104: 34.20 | H104: 69.40 | I104: 27.76 | J104: 61.96 | K104: 27 | L104: 否
A105: 929遵义市中医院 | B105: 19专科护士 | C105: 袁博文 | D105: 11121071806 | E105: 84.50 | F105: 56.33 | G105: 33.80 | H105: 69.80 | I105: 27.92 | J105: 61.72 | K105: 28 | L105: 否
A106: 929遵义市中医院 | B106: 19专科护士 | C106: 董泽念 | D106: 11121263129 | E106: 84.50 | F106: 56.33 | G106: 33.80 | H106: 缺考 | I106: 缺考 | J106: - | K106: - | L106: 否
A107: 929遵义市中医院 | B107: 19专科护士 | C107: 李春花 | D107: 11121331602 | E107: 83.50 | F107: 55.67 | G107: 33.40 | H107: 缺考 | I107: 缺考 | J107: - | K107: - | L107: 否
A108: 929遵义市中医院 | B108: 19专科护士 | C108: 金敏 | D108: 11121123309 | E108: 83.00 | F108: 55.33 | G108: 33.20 | H108: 缺考 | I108: 缺考 | J108: - | K108: - | L108: 否
A109: 929遵义市中医院 | B109: 20普通护士 | C109: 刘玲美 | D109: 11121363124 | E109: 106.00 | F109: 70.67 | G109: 42.40 | H109: 83.60 | I109: =H109*0.4 -> 33.44 | J109: =G109+I109 -> 75.84 | K109: 1 | L109: 是
A110: 929遵义市中医院 | B110: 20普通护士 | C110: 周富娟 | D110: 11121332705 | E110: 103.00 | F110: 68.67 | G110: 41.20 | H110: 80.60 | I110: 32.24 | J110: 73.44 | K110: 2 | L110: 是
A111: 929遵义市中医院 | B111: 20普通护士 | C111: 罗红丹 | D111: 11121280225 | E111: 92.50 | F111: 61.67 | G111: 37.00 | H111: 88.80 | I111: 35.52 | J111: 72.52 | K111: 3 | L111: 是
A112: 929遵义市中医院 | B112: 20普通护士 | C112: 刘中利 | D112: 11121353525 | E112: 100.00 | F112: 66.67 | G112: 40.00 | H112: 78.60 | I112: 31.44 | J112: 71.44 | K112: 4 | L112: 是
A113: 929遵义市中医院 | B113: 20普通护士 | C113: 何青青 | D113: 11121359713 | E113: 98.50 | F113: 65.67 | G113: 39.40 | H113: 78.80 | I113: 31.52 | J113: 70.92 | K113: 5 | L113: 是
A114: 929遵义市中医院 | B114: 20普通护士 | C114: 刘显义 | D114: 11121291301 | E114: 95.50 | F114: 63.67 | G114: 38.20 | H114: 81.40 | I114: 32.56 | J114: 70.76 | K114: 6 | L114: 是
A115: 929遵义市中医院 | B115: 20普通护士 | C115: 孙霞 | D115: 11121356121 | E115: 101.00 | F115: 67.33 | G115: 40.40 | H115: 74.00 | I115: 29.60 | J115: 70.00 | K115: 7 | L115: 是
A116: 929遵义市中医院 | B116: 20普通护士 | C116: 梁丽 | D116: 11121121209 | E116: 92.50 | F116: 61.67 | G116: 37.00 | H116: 81.60 | I116: 32.64 | J116: 69.64 | K116: 8 | L116: 是
A117: 929遵义市中医院 | B117: 20普通护士 | C117: 付镇正 | D117: 11121212813 | E117: 96.00 | F117: 64.00 | G117: 38.40 | H117: 77.40 | I117: 30.96 | J117: 69.36 | K117: 9 | L117: 是
A118: 929遵义市中医院 | B118: 20普通护士 | C118: 杨会 | D118: 11121252408 | E118: 94.00 | F118: 62.67 | G118: 37.60 | H118: 79.20 | I118: 31.68 | J118: 69.28 | K118: 10 | L118: 是
A119: 929遵义市中医院 | B119: 20普通护士 | C119: 冯颖丽 | D119: 11121072026 | E119: 93.00 | F119: 62.00 | G119: 37.20 | H119: 80.00 | I119: 32.00 | J119: 69.20 | K119: 11 | L119: 否
A120: 929遵义市中医院 | B120: 20普通护士 | C120: 余华蓉 | D120: 11121353001 | E120: 101.00 | F120: 67.33 | G120: 40.40 | H120: 71.80 | I120: 28.72 | J120: 69.12 | K120: 12 | L120: 否
A121: 929遵义市中医院 | B121: 20普通护士 | C121: 王国汛 | D121: 11121071427 | E121: 92.50 | F121: 61.67 | G121: 37.00 | H121: 79.80 | I121: 31.92 | J121: 68.92 | K121: 13 | L121: 否
A122: 929遵义市中医院 | B122: 20普通护士 | C122: 祝丽淋 | D122: 11121291619 | E122: 97.00 | F122: 64.67 | G122: 38.80 | H122: 74.20 | I122: 29.68 | J122: 68.48 | K122: 14 | L122: 否
A123: 929遵义市中医院 | B123: 20普通护士 | C123: 陈晶晶 | D123: 11121352910 | E123: 97.00 | F123: 64.67 | G123: 38.80 | H123: 74.20 | I123: 29.68 | J123: 68.48 | K123: 14 | L123: 否
A124: 929遵义市中医院 | B124: 20普通护士 | C124: 余玲玲 | D124: 11121070827 | E124: 95.50 | F124: 63.67 | G124: 38.20 | H124: 75.60 | I124: 30.24 | J124: 68.44 | K124: 16 | L124: 否
A125: 929遵义市中医院 | B125: 20普通护士 | C125: 高均丽 | D125: 11121260712 | E125: 97.00 | F125: 64.67 | G125: 38.80 | H125: 73.80 | I125: 29.52 | J125: 68.32 | K125: 17 | L125: 否
A126: 929遵义市中医院 | B126: 20普通护士 | C126: 骆云霞 | D126: 11121131204 | E126: 92.50 | F126: 61.67 | G126: 37.00 | H126: 78.20 | I126: 31.28 | J126: 68.28 | K126: 18 | L126: 否
A127: 929遵义市中医院 | B127: 20普通护士 | C127: 张伦媛 | D127: 11121070108 | E127: 98.00 | F127: 65.33 | G127: 39.20 | H127: 72.40 | I127: 28.96 | J127: 68.16 | K127: 19 | L127: 否
A128: 929遵义市中医院 | B128: 20普通护士 | C128: 舒敏 | D128: 11121252626 | E128: 98.50 | F128: 65.67 | G128: 39.40 | H128: 71.40 | I128: 28.56 | J128: 67.96 | K128: 20 | L128: 否
A129: 929遵义市中医院 | B129: 20普通护士 | C129: 舒迎 | D129: 11121290423 | E129: 94.50 | F129: 63.00 | G129: 37.80 | H129: 75.20 | I129: 30.08 | J129: 67.88 | K129: 21 | L129: 否
A130: 929遵义市中医院 | B130: 20普通护士 | C130: 冯文艳 | D130: 11121261617 | E130: 93.00 | F130: 62.00 | G130: 37.20 | H130: 76.40 | I130: 30.56 | J130: 67.76 | K130: 22 | L130: 否
A131: 929遵义市中医院 | B131: 20普通护士 | C131: 朱进 | D131: 11121292514 | E131: 95.00 | F131: 63.33 | G131: 38.00 | H131: 73.80 | I131: 29.52 | J131: 67.52 | K131: 23 | L131: 否
A132: 929遵义市中医院 | B132: 20普通护士 | C132: 陈静 | D132: 11121334026 | E132: 96.50 | F132: =E132/1.5 -> 64.33 | G132: =F132*0.6 -> 38.60 | H132: 72.00 | I132: =H132*0.4 -> 28.80 | J132: =G132+I132 -> 67.40 | K132: 24 | L132: 否
A133: 929遵义市中医院 | B133: 20普通护士 | C133: 王娅 | D133: 11121282116 | E133: 92.50 | F133: 61.67 | G133: 37.00 | H133: 76.00 | I133: 30.40 | J133: 67.40 | K133: 25 | L133: 否
A134: 929遵义市中医院 | B134: 20普通护士 | C134: 何承鑫 | D134: 11121362906 | E134: 94.00 | F134: 62.67 | G134: 37.60 | H134: 72.80 | I134: 29.12 | J134: 66.72 | K134: 26 | L134: 否
A135: 929遵义市中医院 | B135: 20普通护士 | C135: 郑磊 | D135: 11121350430 | E135: 94.00 | F135: 62.67 | G135: 37.60 | H135: 71.80 | I135: 28.72 | J135: 66.32 | K135: 27 | L135: 否
A136: 929遵义市中医院 | B136: 20普通护士 | C136: 罗光兰 | D136: 11121330613 | E136: 94.50 | F136: 63.00 | G136: 37.80 | H136: 71.00 | I136: 28.40 | J136: 66.20 | K136: 28 | L136: 否
A137: 929遵义市中医院 | B137: 20普通护士 | C137: 郑洁 | D137: 11121355619 | E137: 95.00 | F137: 63.33 | G137: 38.00 | H137: 70.40 | I137: 28.16 | J137: 66.16 | K137: 29 | L137: 否
A138: 929遵义市中医院 | B138: 20普通护士 | C138: 王斌 | D138: 11121291825 | E138: 93.50 | F138: 62.33 | G138: 37.40 | H138: 71.20 | I138: 28.48 | J138: 65.88 | K138: 30 | L138: 否
A139: 929遵义市中医院 | B139: 20普通护士 | C139: 吴雨佳 | D139: 11121363222 | E139: 92.50 | F139: 61.67 | G139: 37.00 | H139: 72.00 | I139: 28.80 | J139: 65.80 | K139: 31 | L139: 否
A140: 929遵义市中医院 | B140: 20普通护士 | C140: 李历婷 | D140: 11121121908 | E140: 93.00 | F140: 62.00 | G140: 37.20 | H140: 70.40 | I140: 28.16 | J140: 65.36 | K140: 32 | L140: 否
A141: 929遵义市中医院 | B141: 20普通护士 | C141: 耿玉仙 | D141: 11121362901 | E141: 93.50 | F141: 62.33 | G141: 37.40 | H141: 68.00 | I141: 27.20 | J141: 64.60 | K141: 33 | L141: 否
A142: 929遵义市中医院 | B142: 21院感办工作人员 | C142: 聂静 | D142: 11121073308 | E142: 91.00 | F142: 60.67 | G142: 36.40 | H142: 75.60 | I142: 30.24 | J142: 66.64 | K142: 1 | L142: 是
A143: 929遵义市中医院 | B143: 21院感办工作人员 | C143: 江玉婷 | D143: 11121355230 | E143: 88.00 | F143: 58.67 | G143: 35.20 | H143: 78.40 | I143: 31.36 | J143: 66.56 | K143: 2 | L143: 否
A144: 929遵义市中医院 | B144: 21院感办工作人员 | C144: 杨雨维 | D144: 11121282816 | E144: 88.50 | F144: 59.00 | G144: 35.40 | H144: 73.80 | I144: 29.52 | J144: 64.92 | K144: 3 | L144: 否
A145: 929遵义市中医院 | B145: 22病案管理工作人员 | C145: 黄永 | D145: 11121121027 | E145: 108.50 | F145: 72.33 | G145: 43.40 | H145: 76.40 | I145: 30.56 | J145: 73.96 | K145: 1 | L145: 是
A146: 929遵义市中医院 | B146: 22病案管理工作人员 | C146: 江会忍 | D146: 11121333919 | E146: 101.50 | F146: 67.67 | G146: 40.60 | H146: 79.20 | I146: 31.68 | J146: 72.28 | K146: 2 | L146: 否
A147: 929遵义市中医院 | B147: 22病案管理工作人员 | C147: 黄茂 | D147: 11121130727 | E147: 99.00 | F147: 66.00 | G147: 39.60 | H147: 74.40 | I147: 29.76 | J147: 69.36 | K147: 3 | L147: 否
A148: 929遵义市中医院 | B148: 23信息科工作人员 | C148: 黄麒 | D148: 11121290923 | E148: 117.50 | F148: 78.33 | G148: 47.00 | H148: 84.00 | I148: 33.60 | J148: 80.60 | K148: 1 | L148: 是
A149: 929遵义市中医院 | B149: 23信息科工作人员 | C149: 刘亚宁 | D149: 11121252013 | E149: 109.00 | F149: 72.67 | G149: 43.60 | H149: 85.40 | I149: 34.16 | J149: 77.76 | K149: 2 | L149: 是
A150: 929遵义市中医院 | B150: 23信息科工作人员 | C150: 杨仁杰 | D150: 11121242313 | E150: 111.50 | F150: 74.33 | G150: 44.60 | H150: 80.40 | I150: 32.16 | J150: 76.76 | K150: 3 | L150: 否
A151: 929遵义市中医院 | B151: 23信息科工作人员 | C151: 文辞 | D151: 11121361010 | E151: 109.00 | F151: 72.67 | G151: 43.60 | H151: 81.40 | I151: 32.56 | J151: 76.16 | K151: 4 | L151: 否
A152: 929遵义市中医院 | B152: 23信息科工作人员 | C152: 黄萍 | D152: 11121133003 | E152: 106.50 | F152: 71.00 | G152: 42.60 | H152: 77.60 | I152: 31.04 | J152: 73.64 | K152: 5 | L152: 否
A153: 929遵义市中医院 | B153: 23信息科工作人员 | C153: 王远见 | D153: 11121362903 | E153: 106.50 | F153: 71.00 | G153: 42.60 | H153: 76.12 | I153: 30.45 | J153: 73.05 | K153: 6 | L153: 否
A154: 929遵义市中医院 | B154: 23信息科工作人员 | C154: 李永 | D154: 11121242202 | E154: 106.50 | F154: 71.00 | G154: 42.60 | H154: 74.40 | I154: 29.76 | J154: 72.36 | K154: 7 | L154: 否
A155: 929遵义市中医院 | B155: 24设备科工作人员 | C155: 刘浩 | D155: 11121357830 | E155: 108.00 | F155: 72.00 | G155: 43.20 | H155: 80.90 | I155: 32.36 | J155: 75.56 | K155: 1 | L155: 是
A156: 929遵义市中医院 | B156: 24设备科工作人员 | C156: 王晓星 | D156: 11121281007 | E156: 108.00 | F156: 72.00 | G156: 43.20 | H156: 80.80 | I156: 32.32 | J156: 75.52 | K156: 2 | L156: 否
A157: 929遵义市中医院 | B157: 24设备科工作人员 | C157: 程腾 | D157: 11121334210 | E157: 106.50 | F157: 71.00 | G157: 42.60 | H157: 78.10 | I157: 31.24 | J157: 73.84 | K157: 3 | L157: 否
A158: 929遵义市中医院 | B158: 25行政管理工作人员 | C158: 张明旭 | D158: 11121355902 | E158: 109.50 | F158: 73.00 | G158: 43.80 | H158: 86.80 | I158: 34.72 | J158: 78.52 | K158: 1 | L158: 是
A159: 929遵义市中医院 | B159: 25行政管理工作人员 | C159: 潘胜华 | D159: 11121358217 | E159: 114.50 | F159: 76.33 | G159: 45.80 | H159: 79.00 | I159: 31.60 | J159: 77.40 | K159: 2 | L159: 是
A160: 929遵义市中医院 | B160: 25行政管理工作人员 | C160: 王天玉 | D160: 11121361505 | E160: 109.00 | F160: 72.67 | G160: 43.60 | H160: 80.60 | I160: 32.24 | J160: 75.84 | K160: 3 | L160: 否
A161: 929遵义市中医院 | B161: 25行政管理工作人员 | C161: 王进 | D161: 11121349430 | E161: 110.50 | F161: 73.67 | G161: 44.20 | H161: 78.60 | I161: 31.44 | J161: 75.64 | K161: 4 | L161: 否
A162: 929遵义市中医院 | B162: 25行政管理工作人员 | C162: 陈志 | D162: 11121361120 | E162: 111.00 | F162: 74.00 | G162: 44.40 | H162: 75.80 | I162: 30.32 | J162: 74.72 | K162: 5 | L162: 否
A163: 929遵义市中医院 | B163: 25行政管理工作人员 | C163: 邹欣芯 | D163: 11121210813 | E163: 110.50 | F163: 73.67 | G163: 44.20 | H163: 缺考 | I163: 缺考 | J163: - | K163: - | L163: 否
A164: 929遵义市中医院 | B164: 26财务科工作人员 | C164: 戴澜清 | D164: 11121240804 | E164: 115.00 | F164: 76.67 | G164: 46.00 | H164: 81.00 | I164: =H164*0.4 -> 32.40 | J164: =G164+I164 -> 78.40 | K164: 1 | L164: 是
A165: 929遵义市中医院 | B165: 26财务科工作人员 | C165: 王罗艺 | D165: 11121130716 | E165: 114.00 | F165: =E165/1.5 -> 76.00 | G165: =F165*0.6 -> 45.60 | H165: 81.00 | I165: 32.40 | J165: 78.00 | K165: 2 | L165: 否
A166: 929遵义市中医院 | B166: 26财务科工作人员 | C166: 王宿郦 | D166: 11121060111 | E166: 110.50 | F166: 73.67 | G166: 44.20 | H166: 77.00 | I166: 30.80 | J166: 75.00 | K166: 3 | L166: 否
A167: 930遵义市第四人民医院 | B167: 02临床规培医师 | C167: 高晗 | D167: 11121355611 | E167: 96.00 | F167: =E167/1.5 -> 64.00 | G167: =F167*0.6 -> 38.40 | H167: 77 | I167: =H167*0.4 -> 30.80 | J167: =G167+I167 -> 69.20 | K167: 1 | L167: 是
A168: 930遵义市第四人民医院 | B168: 03内科医师 | C168: 蔡红敏 | D168: 11121362310 | E168: 77.50 | F168: =E168/1.5 -> 51.67 | G168: =F168*0.6 -> 31.00 | H168: 73.2 | I168: =H168*0.4 -> 29.28 | J168: =G168+I168 -> 60.28 | K168: 1 | L168: 是
A169: 930遵义市第四人民医院 | B169: 04感染科医师 | C169: 赵婷婷 | D169: 11121262930 | E169: 83.50 | F169: 55.67 | G169: 33.40 | H169: 77 | I169: 30.80 | J169: 64.20 | K169: 1 | L169: 是
A170: 930遵义市第四人民医院 | B170: 04感染科医师 | C170: 罗江波 | D170: 11121211012 | E170: 73.50 | F170: 49.00 | G170: 29.40 | H170: 84.6 | I170: 33.84 | J170: 63.24 | K170: 2 | L170: 否
A171: 930遵义市第四人民医院 | B171: 05外科医师 | C171: 陈韵竹 | D171: 11121060516 | E171: 99.00 | F171: 66.00 | G171: 39.60 | H171: 77 | I171: 30.80 | J171: 70.40 | K171: 1 | L171: 是
A172: 930遵义市第四人民医院 | B172: 05外科医师 | C172: 李学斌 | D172: 11121132026 | E172: 86.00 | F172: 57.33 | G172: 34.40 | H172: 82.2 | I172: 32.88 | J172: 67.28 | K172: 2 | L172: 是
A173: 930遵义市第四人民医院 | B173: 05外科医师 | C173: 田旭 | D173: 11121130702 | E173: 86.50 | F173: 57.67 | G173: 34.60 | H173: 78.4 | I173: 31.36 | J173: 65.96 | K173: 3 | L173: 是
A174: 930遵义市第四人民医院 | B174: 05外科医师 | C174: 方会明 | D174: 11121122219 | E174: 85.00 | F174: 56.67 | G174: 34.00 | H174: 78 | I174: 31.20 | J174: 65.20 | K174: 4 | L174: 是
A175: 930遵义市第四人民医院 | B175: 05外科医师 | C175: 邹重亿 | D175: 11121355416 | E175: 82.00 | F175: 54.67 | G175: 32.80 | H175: 80.2 | I175: 32.08 | J175: 64.88 | K175: 5 | L175: 否
A176: 930遵义市第四人民医院 | B176: 05外科医师 | C176: 林均 | D176: 11121355005 | E176: 70.50 | F176: 47.00 | G176: 28.20 | H176: 78.6 | I176: 31.44 | J176: 59.64 | K176: 6 | L176: 否
A177: 930遵义市第四人民医院 | B177: 05外科医师 | C177: 陈坤 | D177: 11121073201 | E177: 82.00 | F177: =E177/1.5 -> 54.67 | G177: =F177*0.6 -> 32.80 | H177: 缺考 | I177: 缺考 | J177: - | K177: - | L177: 否
A178: 930遵义市第四人民医院 | B178: 06妇产科医师 | C178: 浮红芳 | D178: 11121210806 | E178: 82.00 | F178: 54.67 | G178: 32.80 | H178: 85 | I178: 34.00 | J178: 66.80 | K178: 1 | L178: 是
A179: 930遵义市第四人民医院 | B179: 06妇产科医师 | C179: 王露露 | D179: 11121292207 | E179: 76.00 | F179: 50.67 | G179: 30.40 | H179: 76.4 | I179: 30.56 | J179: 60.96 | K179: 2 | L179: 是
A180: 930遵义市第四人民医院 | B180: 06妇产科医师 | C180: 李雅丽 | D180: 11121121515 | E180: 79.50 | F180: =E180/1.5 -> 53.00 | G180: =F180*0.6 -> 31.80 | H180: 缺考 | I180: 缺考 | J180: - | K180: - | L180: 否
A181: 930遵义市第四人民医院 | B181: 12中医医师 | C181: 罗艳平 | D181: 11121072205 | E181: 95.00 | F181: 63.33 | G181: 38.00 | H181: 82 | I181: 32.80 | J181: 70.80 | K181: 1 | L181: 是
A182: 930遵义市第四人民医院 | B182: 12中医医师 | C182: 陈思璇 | D182: 11121132022 | E182: 86.50 | F182: 57.67 | G182: 34.60 | H182: 80.2 | I182: 32.08 | J182: 66.68 | K182: 2 | L182: 是
A183: 930遵义市第四人民医院 | B183: 12中医医师 | C183: 杨程凯 | D183: 11121263003 | E183: 86.50 | F183: 57.67 | G183: 34.60 | H183: 79.2 | I183: 31.68 | J183: 66.28 | K183: 3 | L183: 是
A184: 930遵义市第四人民医院 | B184: 12中医医师 | C184: 宋旭梅 | D184: 11121355616 | E184: 86.00 | F184: 57.33 | G184: 34.40 | H184: 79 | I184: 31.60 | J184: 66.00 | K184: 4 | L184: 否
A185: 930遵义市第四人民医院 | B185: 12中医医师 | C185: 杨胜琴 | D185: 11121260322 | E185: 82.00 | F185: 54.67 | G185: 32.80 | H185: 78.4 | I185: 31.36 | J185: 64.16 | K185: 5 | L185: 否
A186: 930遵义市第四人民医院 | B186: 12中医医师 | C186: 蒋国叶 | D186: 11121073302 | E186: 81.50 | F186: 54.33 | G186: 32.60 | H186: 77.2 | I186: 30.88 | J186: 63.48 | K186: 6 | L186: 否
A187: 930遵义市第四人民医院 | B187: 12中医医师 | C187: 王小倩 | D187: 11121130326 | E187: 78.00 | F187: 52.00 | G187: 31.20 | H187: 80 | I187: 32.00 | J187: 63.20 | K187: 7 | L187: 否
A188: 930遵义市第四人民医院 | B188: 12中医医师 | C188: 周芮 | D188: 11121073203 | E188: 78.50 | F188: 52.33 | G188: 31.40 | H188: 78.4 | I188: 31.36 | J188: 62.76 | K188: 8 | L188: 否
A189: 930遵义市第四人民医院 | B189: 12中医医师 | C189: 吴宗嫦 | D189: 11121350406 | E189: 77.50 | F189: =E189/1.5 -> 51.67 | G189: =F189*0.6 -> 31.00 | H189: 缺考 | I189: 缺考 | J189: - | K189: - | L189: 否
A190: 930遵义市第四人民医院 | B190: 14影像科医师 | C190: 方培彦 | D190: 11121282401 | E190: 79.00 | F190: 52.67 | G190: 31.60 | H190: 81.8 | I190: 32.72 | J190: 64.32 | K190: 1 | L190: 是
A191: 930遵义市第四人民医院 | B191: 15超声医师 | C191: 张小红 | D191: 11121072703 | E191: 75.50 | F191: 50.33 | G191: 30.20 | H191: 70.8 | I191: 28.32 | J191: 58.52 | K191: 1 | L191: 否
A192: 930遵义市第四人民医院 | B192: 17麻醉医师 | C192: 张健 | D192: 11121359817 | E192: 91.00 | F192: 60.67 | G192: 36.40 | H192: 86.8 | I192: 34.72 | J192: 71.12 | K192: 1 | L192: 是
A193: 930遵义市第四人民医院 | B193: 17麻醉医师 | C193: 曾婕妤 | D193: 11121331319 | E193: 84.50 | F193: 56.33 | G193: 33.80 | H193: 86.4 | I193: 34.56 | J193: 68.36 | K193: 2 | L193: 是
A194: 930遵义市第四人民医院 | B194: 17麻醉医师 | C194: 付龙 | D194: 11121070706 | E194: 84.00 | F194: 56.00 | G194: 33.60 | H194: 77.6 | I194: 31.04 | J194: 64.64 | K194: 3 | L194: 是
A195: 930遵义市第四人民医院 | B195: 17麻醉医师 | C195: 王成 | D195: 11121250428 | E195: 88.00 | F195: 58.67 | G195: 35.20 | H195: 69.2 | I195: 27.68 | J195: 62.88 | K195: 4 | L195: 否
A196: 930遵义市第四人民医院 | B196: 17麻醉医师 | C196: 蹇天旺 | D196: 11121336421 | E196: 80.00 | F196: 53.33 | G196: 32.00 | H196: 75.6 | I196: 30.24 | J196: 62.24 | K196: 5 | L196: 否
A197: 930遵义市第四人民医院 | B197: 17麻醉医师 | C197: 王洪兵 | D197: 11121280224 | E197: 92.50 | F197: =E197/1.5 -> 61.67 | G197: =F197*0.6 -> 37.00 | H197: 缺考 | I197: 缺考 | J197: - | K197: - | L197: 否
A198: 930遵义市第四人民医院 | B198: 17麻醉医师 | C198: 张放 | D198: 11121132607 | E198: 83.50 | F198: =E198/1.5 -> 55.67 | G198: =F198*0.6 -> 33.40 | H198: 缺考 | I198: 缺考 | J198: - | K198: - | L198: 否
A199: 930遵义市第四人民医院 | B199: 17麻醉医师 | C199: 胡游伟 | D199: 11121123012 | E199: 74.50 | F199: =E199/1.5 -> 49.67 | G199: =F199*0.6 -> 29.80 | H199: 缺考 | I199: 缺考 | J199: - | K199: - | L199: 否
A200: 930遵义市第四人民医院 | B200: 17麻醉医师 | C200: 胡倩男 | D200: 11121349803 | E200: 74.50 | F200: =E200/1.5 -> 49.67 | G200: =F200*0.6 -> 29.80 | H200: 缺考 | I200: 缺考 | J200: - | K200: - | L200: 否
... 212 more rows

Sheet Sheet2

Sheet Sheet3
